Cogmind - Beta 15 @@@ ROGUE MODE // 2025.07.09 @ 01:02:58 Player: Mogwok Wargfriend Result: Destroyed by G-34 Mercenary with Small Laser Performance ------------- Evolutions (0) 0 Regions Visited (1) 200 Robots Destroyed (31) 155 Value Destroyed (409) 409 Prototype IDs (0) 0 Alien Tech Used (0) 0 Bonus (0) 0 TOTAL SCORE: 764 Bonus ------- None Cogmind --------- Core Integrity 0/250 Matter 290/300 Energy 105/125 System Corruption 0% Temperature Cool (24) Movement Rolling (105) Ox1 Location -10/Materials Parts ------- > --- POWER (1) -------- Light Ion Engine > --- PROPULSION (2) --- Wheel Compact Wheel > --- UTILITY (2) ------ Large Storage Unit Improved Targeting Computer > --- WEAPON (2) ------- Medium Laser Particle Gun > --- INVENTORY (15) --- Light Ion Engine Light Ion Engine Wheel Wheel Compact Wheel Compact Wheel Medium Storage Unit High-capacity Matter Pod (200) Improved Targeting Computer Improved Targeting Computer Small Laser Small Laser Grenade Launcher Mining Laser Peak State ------------ > --- POWER ------------ Light Ion Engine > --- PROPULSION ------- Wheel Compact Wheel > --- UTILITY ---------- Large Storage Unit Improved Targeting Computer > --- WEAPON ----------- Medium Laser Particle Gun > --- INVENTORY -------- Light Ion Engine Light Ion Engine Wheel Wheel Compact Wheel Compact Wheel Medium Storage Unit High-capacity Matter Pod Improved Targeting Computer Improved Targeting Computer Small Laser Small Laser Grenade Launcher Mining Laser [Rating: 10] Favorites ----------- Power Light Ion Engine Engine Light Ion Engine Propulsion Wheel Wheel Wheel Utility Large Storage Unit Device Seismic Detector Storage Large Storage Unit Processor Improved Targeting Computer Protection Light Armor Plating Weapon Medium Laser Energy Gun Medium Laser Build | -11 -10 ------- Run | Yrd Mat Slots Evolved . | . . Power . | . . Propulsion . | . . Utility . | . . Weapon . | . . Parts Attached 21 | 7 14 Power 3 | 1 2 Engine 3 | 1 2 Core . | . . Reactor . | . . Propulsion 7 | 2 5 Treads . | . . Leg . | . . Wheel 7 | 2 5 Hover . | . . Flight . | . . Utility 6 | 2 4 Device 1 | 1 . Storage 3 | 1 2 Processor 1 | . 1 Hackware . | . . Protection 1 | . 1 Artifact . | . . Weapon 5 | 2 3 Energy Gun 5 | 2 3 Energy Cannon . | . . Ballistic Gun . | . . Ballistic Cannon . | . . Launcher . | . . Special Weapon . | . . Impact Weapon . | . . Slashing Weapon . | . . Piercing Weapon . | . . Special Melee Weapon . | . . Unidentified Prototypes . | . . Parts Lost 5 | . 5 Power 1 | . 1 Propulsion 1 | . 1 Utility 1 | . 1 Weapon 2 | . 2 Highest Loss Streak 3 | . 3 To Critical Strikes . | . . Average Backups 13 | 4 14 Power 1 | . 1 Propulsion 3 | 2 3 Utility 4 | . 4 Weapon 3 | 1 3 Tool/Special . | . . Unused Backups 23 | 3 20 Power 2 | . 2 Propulsion 8 | 2 6 Utility 6 | . 6 Weapon 7 | 1 6 Tool/Special . | . . Average Slot Usage (%) 99 | . 99 Engine 13 | . 13 Wheel 28 | . 28 Device 5 | . 5 Storage 14 | . 14 Protection 8 | . 8 Energy Gun 27 | . 27 Peak Build Rating 10 | 7 10 Average Rating 7 | 5 8 On Entrance 3 | . 7 Naked Turns . | . . Heaviest Build 31 | 14 31 Greatest Support 26 | 20 26 Greatest Overweight (x) 2 | 1 2 Average Overweight (x) 1 | . 1 Largest Inventory Capacity 15 | 8 15 Average Capacity 14 | 7 14 Most Carried 15 | 8 15 Average Carried 13 | 4 14 Final Capacity 15 | 8 15 Final Carried 14 | 8 14 Class Distribution -------------------- 100% | Mutant Dominant Class ---------------- Mutant | -10/Materials Resources | -11 -10 ----------- Run | Yrd Mat Matter Collected 730 | 270 460 Remotely . | . . Salvage Created 896 | 174 722 Parts 59 | 15 44 Haulers Intercepted 1 | . 1 Recyclers Shooed 3 | . 3 Parts Field Recycled . | . . Retrieved Matter . | . . Parts Self-Destructed . | . . Prevented . | . . Kills | -11 -10 ------- Run | Yrd Mat Combat Hostiles Destroyed 15 | . 15 Guns 14 | . 14 Classes Destroyed 9 | 3 6 Worker 4 | 2 2 Builder 1 | . 1 Tunneler 4 | 3 1 Hauler 1 | . 1 Recycler 3 | 1 2 Mechanic 1 | . 1 Watcher 2 | . 2 Swarmer 9 | . 9 Grunt 6 | . 6 Best Kill Streak 5 | 3 5 Combat Bots Only 3 | . 3 Max Kills in Single Turn 2 | 1 2 Gunslinging 1 | . 1 Exploded . | . . Melee . | . . Uniques/NPCs Destroyed . | . . Combat | -11 -10 -------- Run | Yrd Mat Hostile Shots Fired 116 | . 116 Missed 28 | . 28 Hits 88 | . 88 Projectile 88 | . 88 Critical Strikes 1 | . 1 Damage Taken 854 | . 854 Core 259 | . 259 Absorbed by Shields . | . . Core Remaining (%) 100 | 100 . Volleys Fired 102 | 18 84 Largest 2 | 2 2 Hottest 115 | 90 115 Shots Fired 193 | 32 161 Gun 193 | 32 161 Cannon . | . . Launcher . | . . Special . | . . Kinetic . | . . Thermal 193 | 32 161 Explosive . | . . Electromagnetic . | . . Robot Hit Streak 7 | 5 7 Robot Miss Streak 4 | 4 4 Penetration Max . | . . Secondary Targets 2 | . 2 Max Gunslinging Chain 1 | . 1 Shots Hit Robots 116 | 16 100 Core Hits 41 | 7 34 Critical Kills . | . . Critical Parts Destroyed . | . . Critical Strikes 9 | . 9 Burn 9 | . 9 Melee Attacks . | . . Impact . | . . Slashing . | . . Piercing . | . . Sneak Attacks . | . . Combat Hostiles . | . . Follow-up Attacks . | . . Damage Inflicted 1473 | 213 1260 Guns 1473 | 213 1260 Cannons . | . . Explosions . | . . Melee . | . . Ramming . | . . Kinetic . | . . Thermal 1473 | 213 1260 Explosive . | . . Electromagnetic . | . . Impact . | . . Slashing . | . . Piercing . | . . Highest Corruption . | . . Average Corruption . | . . Corruption Purged . | . . Corruption Blocked . | . . Overload Shots . | . . Overflow Damage . | . . Projectiles . | . . Explosions . | . . Melee . | . . Knockbacks . | . . Impact . | . . Kinetic . | . . Secondary . | . . Self-Inflicted Damage . | . . Shots . | . . Rammed . | . . Targets Rammed . | . . Kicked . | . . Crushed . | . . Highest Temperature 484 | 240 484 Average Temperature 129 | 82 137 Received Heat Transfer 267 | . 267 Effects 13 | 1 12 Shutdowns 2 | . 2 Energy Bleed 3 | . 3 Interference 1 | 1 . Short Circuit 1 | . 1 Damage (minor) 2 | . 2 Damage (major) 4 | . 4 Siege Activations . | . . Martial Activations . | . . Shielding Activations . | . . Robots Disrupted . | . . Combat Hostiles . | . . Robots Corrupted . | . . Combat Hostiles . | . . Parts Fried . | . . Impact Corruptions . | . . Robots Melted 1 | . 1 Combat Hostiles 1 | . 1 Parts Melted 12 | 2 10 Heat Transferred 4708 | 558 4150 Parts Sabotaged . | . . Parts Stolen . | . . Parts Stripped . | . . Power Chain Reactions . | . . Alert | -11 -10 ------- Run | Yrd Mat Maximum Alert Level . | . . Low Security (%) 100 | 100 100 Level 1 . | . . Level 2 . | . . Level 3 . | . . Level 4 . | . . Level 5 . | . . High Security . | . . Max Security . | . . Peak Influence 102 | 10 102 Initial . | . . Average 16 | 1 18 Influence Increases 497 | 30 467 Destroy 0b10 Robot/C 300 | . 300 Destroy 0b10 Robot/NC 80 | 30 50 Destroy Leader 66 | . 66 Successful Hack 6 | . 6 Lose Combat Pursuer 45 | . 45 Influence Decreases 429 | 30 399 Time Decay 281 | 30 251 Lost Part 50 | . 50 Purge Threat 98 | . 98 Squads Dispatched 2 | . 2 Investigation 2 | . 2 Extermination . | . . Reinforcement . | . . Assault . | . . Garrison . | . . Intercept . | . . Searches Triggered . | . . Construction Impeded . | . . Haulers Reinforced . | . . Active Scanning Responses . | . . Cargo Convoy Interrupts . | . . Stealth | -11 -10 --------- Run | Yrd Mat Distress Signals . | . . Communications Jammed . | . . Distress Signals . | . . Times Spotted 27 | . 27 Peak Tracking Total 6 | . 6 Tactical Retreats 3 | . 3 Traps | -11 -10 ------- Run | Yrd Mat Traps Triggered 1 | . 1 Indirectly . | . . Trap Hack Attempts . | . . Triggered . | . . Disarmed . | . . Reprogrammed . | . . Reused . | . . Traps Extracted . | . . Installed . | . . Triggered . | . . Machines | -11 -10 ---------- Run | Yrd Mat Machines Disabled . | . . Max in Single Turn . | . . Machines Repaired . | . . Machines Dismantled . | . . Machines Sabotaged . | . . Overloaded Fab Kills . | . . Hacking | -11 -10 --------- Run | Yrd Mat Machines Accessed 8 | . 8 Terminals 7 | . 7 Fabricators . | . . Repair Stations . | . . Recycling Units 1 | . 1 Scanalyzers . | . . Garrison Access . | . . Total Hacks 24 | . 24 Successful 8 | . 8 Failed 15 | . 15 Catastrophic 1 | . 1 Database Lockouts 1 | . 1 Manual 14 | . 14 Terminals 21 | . 21 Fabricators . | . . Repair Stations . | . . Recycling Units 3 | . 3 Scanalyzers . | . . Garrison Access . | . . Terminal Hacks 5 | . 5 Robot Analysis 1 | . 1 Recycling Unit Index 1 | . 1 Alert Level 1 | . 1 Unreport Threat 1 | . 1 Locate Traps 1 | . 1 Fabricator Hacks . | . . Repair Station Hacks . | . . Recycling Unit Hacks 1 | . 1 Report Inventory 1 | . 1 Scanalyzer . | . . Garrison Access Hacks . | . . Unauthorized Hacks 2 | . 2 Terminals 1 | . 1 Operators 1 | . 1 Fabricators . | . . Repair Stations . | . . Recycling Units 1 | . 1 Reject 1 | . 1 Scanalyzers . | . . Garrison Access . | . . Data Cores Recovered . | . . Used . | . . Hacking Detections 7 | . 7 Full Trace Events 1 | . 1 Feedback Events . | . . Feedback Blocked . | . . Robot Schematics Acquired . | . . Robots Built . | . . Authchips . | . . Time . | . . Total Robot Build Rating . | . . Part Schematics Acquired . | . . Parts Built . | . . Authchips . | . . Time . | . . Total Part Build Rating . | . . Parts Repaired . | . . Time . | . . Parts Recycled . | . . Recycled Matter . | . . Retrieved Matter . | . . Retrieved Components . | . . Parts Scanalyzed . | . . Part Schematics Acquired . | . . Parts Damaged . | . . Bothacking | -11 -10 ------------ Run | Yrd Mat Used RIF Installer . | . . Robots Hacked . | . . Non-combat . | . . Combat . | . . Robot Hacks Applied . | . . Relay Couplers Released . | . . Fabnet Peak Effective % . | . . Robots Rewired . | . . Allies Hacked . | . . Hacks Repelled . | . . Allies | -11 -10 -------- Run | Yrd Mat Total Allies . | . . Largest Group . | . . Highest-Rated Group . | . . Highest-Rated Ally . | . . Total Orders . | . . Ally Attacks . | . . Total Damage . | . . Kills . | . . Allies Corrupted . | . . Allies Melted . | . . Intel | -11 -10 ------- Run | Yrd Mat Active Infowar (turns) 452 | 22 430 Seismic 452 | 22 430 Robot Analysis Total 1 | . 1 Derelict Logs Recovered . | . . Drone Launches . | . . Drone Recoveries . | . . Exploration | -11 -10 ------------- Run | Yrd Mat Turns Passed 1353 | 151 1202 Spaces Moved 941 | 99 842 Core 10 | 10 . Treads . | . . Legs . | . . Wheels 931 | 89 842 Hover . | . . Flight . | . . Fastest Speed 50 | 50 80 Average Speed 98 | 77 101 Slowest Speed 110 | 95 110 Overloaded Moves . | . . Propulsion Burnouts . | . . Robots Hopped . | . . Potential Cave-ins . | . . Cave-ins Triggered . | . . Exploration Rate (%) 43 | 4 83 Regions Visited 1 Branch Regions . Pre-discovered Areas . | . . Known Exits Taken . | . . Unknown Exits Taken 1 | 1 . Scrap Searched . | . . Spaces Dug . | . . Terrain Destroyed . | . . Melee . | . . Projectile . | . . AOE . | . . Terrain Rammed . | . . Walls Destroyed . | . . Machines Disabled . | . . Actions | -11 -10 --------- Run | Yrd Mat Total 1178 | 138 1040 Wait 62 | 1 61 Move 940 | 98 842 Hop . | . . Pick Up 33 | 11 22 Fast Attach 8 | 7 1 Attach 7 | . 7 Detach 1 | . 1 Swap 6 | . 6 Drop 19 | 3 16 Fire 102 | 18 84 Melee . | . . Ram . | . . Kick . | . . Crush . | . . Escape Stasis . | . . Rewire . | . . Trap . | . . Miscellaneous . | . . Route ------- -11/Scrapyard -10/Materials (discovered 4 exits: [*Mat x2] / [*Min x2]) History --------- Turn | Location | Event 23 | -11/Scrapyard | Discovered new exit (range 16) 152 | -11/Scrapyard | Entered Materials 312 | -10/Materials | Discovered new exit (range 15) 320 | -10/Materials | Build established: Mutant 454 | -10/Materials | Core integrity fell below 50% 576 | -10/Materials | Lost 3 parts (1p2w) 826 | -10/Materials | Discovered new exit (range 9) 1039 | -10/Materials | Discovered new exit (range 16) 1106 | -10/Materials | Core integrity fell below 20% 1129 | -10/Materials | Central database locked down 1329 | -10/Materials | Discovered new exit (range 14) 1354 | -10/Materials | Destroyed by G-34 Mercenary with Small Laser Last Messages --------------- 01288_ S-10 Pest destroyed. 01298_ Overheating: Med. Laser damaged (-17). 01299_ Power failure, Lgt. Ion Engine shutdown. 01300_ S-10 Pest destroyed. 01303_ Overheating: Energy bleed (-12). 01303_ Acquired 18 matter. 01309_ Dropped Lgt. Ion Engine. 01310_ Acquired 7 matter. 01314_ Acquired 3 matter. 01327_ Connecting with Terminal... >>Traps(Locate) Found 5 traps in 2 arrays: 3x Shock Trap 2x EMP Trap Map updated. 01327_ ALERT: Suspicious activity at Terminal M001. Dispatching Investigation squad. 01329_ EXIT=FOUND 01330_ G-34 Mercenary destroyed. 01352_ Lgt. Armor Plating destroyed. Map ----- +----------------------------------------------------+ | +#+# *+% ==% % % #?# #??????? | | # !###########+#####^### ##?????? | | ^ # #??????# ! = #^## #?????? | | ##########??????# # ## #?????? | | #???????????????# #=## #?????? | | #???????????????# """ #*### ##?????? | | #???????????????# """"" +[#?# #??????? | | ##+#???????????????# """"" #%#?# #??????? | | ???????????????????# """"" #=#?#+#######? | | ???????????????????# """ #=#?# #? | | ???????????????????# # #?# = #? | | ???????????????????#####+####*### #? | | ???????????????????????# ####* # "T" #? | | ???????????????????????# T #########? | | ???????????????????????# #????????? | | ???????????????????????# #????????? | | ???????????????????????# #????? #?? | | ???????????????????????# # #? | | ?????????????????????? + #? | | ????????????????????? # # #? | | ???????????????????? ## ### #?## #?? | | ??????????????????? ??#g#?#^^^#?????##?? | | ?????????????????? ???# #?# #????????? | | ?????????????????? ????#g#?# #????????? | | ????????????????????????# #?# #????????? | | ?????????????????????####@### #????????? | | ?????????????????????# # #????????? | | ?????????????????????# # #????????? | | ?????????????????????#""" #=%!#????????? | | ?????????????????????#""" * + +????????? | | ?????????????????????#""" # < #????????? | | ?????????????????????# # #????????? | | ?????????????????????############????????? | | ?????????????????????????????????????????? | | ?????????????????????????????????????????? | | ?????????????????????????????????????????? | | ?????????????????????????????????????????? | | ?????????????????????????????????????????? | | | | | | | | | | | | | | | | | | | | | | | | | +----------------------------------------------------+ Best States ------------- Heat Dissipation 25 Energy Generation 10 Energy Capacity 250 Matter Stores 300 Matter Capacity 300 Sight Range 16 Terrain Scan Density 10 Armor Coverage 150 Evasion (%) 44 Item Schematics ----------------- None Robot Schematics ------------------ None Fabricated ------------ Nothing Repaired ---------- Nothing Alien Tech Used ----------------- None Achievements -------------- None Challenges ------------ None Game ------ Seed MatterStealthThruster Manual? 0 Play Time 00:18:12 Cumulative 246.3 hours Start 2025.07.08 @ 14:20:28 End 2025.07.09 @ 01:02:58 Sessions 2 Manual Loads 0 Difficulty Rogue Special Mode None Game No. 232 Rogue 232 Adventurer 0 Explorer 0 Win Type - Total 1 Types 1/0/0/0/0/0/0/0/0/0 Lore% 62 Gallery% 61 Achievement% 48 Wizard Run 0 Options --------- Layout 2 ASCII 1 Keyboard 1 Movement Numpad Keybinds 0 Fullscreen 2 Font 32/TamsynBold Map View 50x44 Zoom Use 0% Tactical HUD 1 Map Filters NONE Filters NONE Steam 1 RUN: 3bc42581-d88d-44ff-a232-471ae8823e30